fUST/lending_fUST_20240409
["ID","MTS","AMOUNT","RATE_DAILY","PERIOD"]
[321912627,1712616638552,-1207.63770869,0.00038621,30]
[321912628,1712616638562,-190.139572,0.00038933,2]
[321912629,1712616638571,-237.882362,0.00038933,2]
[321912630,1712616638580,-984.42013924,0.00038997,4]
[321912631,1712616638590,-1713.66889258,0.00038997,4]
[321912632,1712616638599,-29504.25462486,0.00038998,4]
[321912633,1712616638608,-36737.47162522,0.00038998,120]
[321912634,1712616638617,-244.30116187,0.00038998,4]
[321912635,1712616638626,-400.0,0.00038998,2]
[321912636,1712616638635,-410.86999674,0.00038998,4]
[321912637,1712616638644,-172.68981011,0.00038998,4]
[321912638,1712616638653,-1496.31204114,0.00038998,4]
[321912639,1712616638663,-283.60991601,0.00038998,4]
[321912640,1712616638672,-202.7125,0.00038998,4]
[321912641,1712616638681,-155.01704537,0.00038998,4]
[321912642,1712616638690,-181.34731169,0.00038998,4]
[321912643,1712616638700,-707.64102279,0.00038998,4]
[321912644,1712616638709,-358.19825999,0.00038998,4]
[321912645,1712616638719,-290.23277151,0.00038998,4]
[321912646,1712616638728,-239.27900853,0.00038998,4]
[321912647,1712616638737,-327.49707419,0.00038998,4]
[321912648,1712616638746,-308.80925503,0.00038998,4]
[321912649,1712616638755,-284.08314006,0.00038998,4]
[321912650,1712616638764,-750.15457064,0.00038998,2]
[321912651,1712616638773,-155.03553122,0.00038998,4]
[321912652,1712616638783,-506.63184784,0.00038998,4]
[321912653,1712616638792,-223.64696511,0.00038998,4]
[321912654,1712616638801,-1219.24973636,0.00038998,4]
[321912655,1712616638810,-155.06512735,0.00038998,4]
[321912656,1712616638819,-190.72501436,0.00038998,4]
[321912657,1712616638829,-155.76948004,0.00038998,4]
[321912658,1712616638839,-1140.11063756,0.00038998,4]
[321912659,1712616638848,-371.5022523,0.00038998,4]
[321912660,1712616638857,-3470.56453944,0.00038998,4]
[321912661,1712616638866,-155.79225386,0.00038998,4]
[321912662,1712616638876,-322.93055652,0.00038998,4]
[321912663,1712616638885,-372.38257604,0.00038998,4]
[321912664,1712616638894,-180.78171506,0.00038998,4]
[321912665,1712616638903,-151.0,0.00038999,2]
[321912666,1712616638912,-44325.84737264,0.00039,30]
[321912667,1712616638925,-13022.69796413,0.00039,30]
[321912668,1712616638954,-18233.99513513,0.00039,30]
[321912669,1712616639100,-10314.99760578,0.00039,30]
[321912670,1712616639114,-2557.07833552,0.00039,30]
[321912703,1712616639840,-1286.76793694,0.00037309,2]
[321912705,1712616639849,-7213.05907094,0.00039,30]
[321912745,1712616643343,-808.03694279,0.00038999,4]
[321912747,1712616643352,-1476887.52731138,0.00039,30]
[321912749,1712616643362,-12070.87398633,0.00039,2]
[321912751,1712616643371,-18492.6884231,0.00039,4]
[321912753,1712616643381,-151.0,0.00039049,4]
[321912755,1712616643390,-240.35157356,0.00039267,9]
[321912757,1712616643400,-7069.90867127,0.00039372,2]
[321912759,1712616643409,-87701.89524853,0.00039372,2]
[321912761,1712616643420,-298642.42084357,0.00039372,2]
[321912767,1712616643468,-0.01340815,0.00039372,2]
[321912952,1712616649175,912.67806081,0.00025,2]
[321912953,1712616667081,213.47614041,0.0002,2]
[321912959,1712616710800,156.74777884,0.00029527,2]
[321912960,1712616716306,577.50017062,0.0002,5]
[321912961,1712616773950,157.27052097,0.0002,2]
[321912962,1712616776349,189.89078142,0.0002,2]
[321912963,1712616784817,343.77268653,0.0002,2]
[321912964,1712616787120,3406.58437181,0.0002,2]
[321912967,1712616879148,189.15769109,0.0002104,15]
[321912969,1712617417848,643.834696,0.00020689,2]
[321912970,1712617608267,1652.5402603,0.00020664,2]
[321912971,1712617632121,-154.90705577,0.00021654,2]
[321912972,1712617632142,-188.58893471,0.00021655,2]
[321912973,1712617632164,-215.70131407,0.00021655,2]
[321912974,1712617632184,-1131.68428374,0.00021655,2]
[321912975,1712617632206,-2120.63245232,0.00021655,2]
[321912976,1712617632226,-3734.82468717,0.00021655,2]
[321912977,1712617632246,-473.12701109,0.00021656,2]
[321912978,1712617632269,-271.8195425,0.00021656,2]
[321912979,1712617632292,-581.75582729,0.00021656,2]
[321912980,1712617632313,-154.90705577,0.00021656,2]
[321912981,1712617632333,-220.14831517,0.00021656,2]
[321912982,1712617632355,-300.0,0.00021656,2]
[321912983,1712617632375,-300.0,0.00021656,2]
[321912984,1712617632396,-154.90705577,0.00021656,2]
[321912985,1712617632417,-282.66267272,0.00021656,2]
[321912986,1712617632437,-156.54809607,0.00021657,2]
[321912987,1712617632458,-157.22434872,0.00021657,2]
[321912988,1712617632478,-407.59656825,0.00021657,2]
[321912989,1712617632500,-469.89408815,0.00021657,2]
[321912990,1712617632522,-2579.2553814,0.00021657,2]
[321912991,1712617632543,-282.23953123,0.00021657,2]
[321912992,1712617632565,-276.96705132,0.00021657,2]
[321912993,1712617632586,-2935.09161467,0.00021657,2]
[321912994,1712617632609,-886.58989039,0.00021658,2]
[321912995,1712617632632,-154.90705577,0.00021658,2]
[321912996,1712617632653,-1616.75713304,0.00021658,2]
[321912997,1712617632674,-1086.90254792,0.00021658,2]
[321912998,1712617632693,-263.37349984,0.00021659,2]
[321912999,1712617632713,-545.90247133,0.00021659,2]
[321913000,1712617632733,-205.65384658,0.00021659,2]
[321913001,1712617632755,-601.41035313,0.00021659,2]
[321913002,1712617632776,-781.66926533,0.00021659,2]
[321913003,1712617632798,-5781.60876067,0.00021659,2]
[321913004,1712617632818,-19131.19494376,0.00021659,2]
[321913005,1712617632841,-1307.14749885,0.0002166,2]
[321913006,1712617632862,-1963.44133706,0.0002166,2]
[321913007,1712617632882,-154.90705577,0.0002166,2]
[321913008,1712617632901,-935.87904205,0.0002166,2]
[321913009,1712617632920,-687.0280134,0.00021661,2]
[321913010,1712617632938,-558.32933043,0.00021661,2]
[321913011,1712617632957,-1865.50634258,0.00021661,2]
[321913012,1712617632975,-524.59337771,0.00021661,2]
[321913013,1712617632994,-500.0,0.00021661,2]
[321913014,1712617633012,-311.10164295,0.00021661,2]
[321913015,1712617633030,-463.43528092,0.00021661,2]
[321913016,1712617633049,-688.99595907,0.00021662,2]
[321913017,1712617633141,-868.18863525,0.00021662,2]
[321913018,1712617633162,-2763.9336173,0.00021662,2]
[321913019,1712617633181,-1485.26994661,0.00021662,2]
[321913020,1712617633201,-4899.48981812,0.00021662,2]
[321913021,1712617650112,-688.99595907,0.00021654,2]
[321913022,1712617650135,-2615.47741153,0.00021654,2]
[321913023,1712617650157,-5335.96825788,0.00021662,2]
[321913024,1712617653116,-500.0,0.00021663,2]
[321913025,1712617653136,-420.80886636,0.00021663,2]
[321913026,1712617653155,-500.0,0.00021663,2]
[321913027,1712617653175,-500.0,0.00021663,2]
[321913028,1712617653195,-171.88641959,0.00021663,2]
[321913029,1712617750104,-4753.24992344,0.00021591,2]
[321913030,1712617764265,-3572.4054116,0.00021591,2]
[321913031,1712617764285,-300.0,0.00021691,2]
[321913032,1712617764305,-300.0,0.00021691,2]
[321913033,1712617764324,-300.0,0.00021691,2]
[321913034,1712617764344,-47586.56218939,0.00021692,2]
[321913035,1712617764362,-360.11062646,0.00021692,2]
[321913036,1712617764382,-481.61477034,0.00021692,2]
[321913037,1712617764401,-575.16724652,0.00021692,2]
[321913038,1712617764421,-252.99281962,0.00021692,2]
[321913039,1712617764442,-24900.0,0.00021693,2]
[321913040,1712617764461,-3717.29210644,0.00022,2]
[321913041,1712617764560,-176.03333,0.00022703,2]
[321913042,1712617764581,-420.0,0.00023578,2]
[321913043,1712617764603,-420.0,0.0002386,2]
[321913044,1712617764624,-879.05986415,0.00025,2]
[321913045,1712617764649,-587.0,0.0002563,2]
[321913046,1712617764671,-587.0,0.00026246,2]
[321913047,1712617764692,-259.872768,0.00027397,2]
[321913048,1712617764712,-166.06252,0.00027397,2]
[321913049,1712617764733,-823.0,0.0002786,2]
[321913050,1712617764756,-823.0,0.00028871,2]
[321913051,1712617764778,-240.68756827,0.00029527,2]
[321913052,1712617764799,-188.19613238,0.000298,2]
[321913053,1712617764822,-26342.61063477,0.0003,30]
[321913113,1712617837967,-182.307066,0.00029799,2]
[321913115,1712617837977,-161.11084065,0.000299,2]
[321913118,1712617837988,-1512.00359076,0.00029999,2]
[321913120,1712617837998,-300.0,0.00029999,2]
[321913122,1712617838008,-300.0,0.00029999,2]
[321913125,1712617838018,-1712.27352128,0.0003,30]
[321913127,1712617838028,-253.10179788,0.0003,4]
[321913128,1712617838037,-7644.35101353,0.0003,10]
[321913130,1712617838047,-165.0,0.0003,2]
[321913132,1712617838056,-725.01803854,0.0003,4]
[321913134,1712617838099,-287.82282929,0.0003,4]
[321913135,1712617838108,-500.0,0.00030136,2]
[321913137,1712617838118,-161.11084055,0.00030642,2]
[321913139,1712617838127,-643.834696,0.00031034,2]
[321913141,1712617838136,-1756.24424029,0.00031381,4]
[321913143,1712617838146,-635.67928553,0.00031382,4]
[321913145,1712617838157,-161.11084055,0.00031383,2]
[321913148,1712617838166,-1166.47225466,0.00031493,4]
[321913150,1712617838175,-258.19930844,0.00031494,4]
[321913151,1712617838185,-3943.50120972,0.00031499,4]
[321913154,1712617838194,-2000.0,0.000315,2]
[321913155,1712617838205,-2000.0,0.0003151,2]
[321913157,1712617838214,-25704.10069219,0.00031519,4]
[321913160,1712617838225,-2000.0,0.0003152,2]
[321913162,1712617838235,-2000.0,0.0003153,2]
[321913164,1712617838244,-2000.0,0.0003154,2]
[321913165,1712617838254,-2000.0,0.0003155,2]
[321913167,1712617838263,-2000.0,0.0003156,2]
[321913169,1712617838272,-2000.0,0.0003157,2]
[321913171,1712617838282,-246.50024851,0.00031579,2]
[321913172,1712617838291,-2000.0,0.0003158,2]
[321913173,1712617838300,-2000.0,0.0003159,2]
[321913174,1712617838310,-2000.0,0.000316,2]
[321913175,1712617838319,-2000.0,0.0003161,2]
[321913177,1712617838328,-3025.021886,0.0003162,2]
[321913179,1712617838337,-161.11084055,0.00032125,2]
[321913180,1712617838346,-420.0,0.00032332,2]
[321913181,1712617838355,-161.11084055,0.00032866,2]
[321913182,1712617838364,-1520.49711827,0.00032991,4]
[321913183,1712617838374,-1257.41905842,0.00032991,4]
[321913184,1712617838383,-704.8279547,0.00032992,4]
[321913185,1712617838393,-5017.99862,0.00032993,4]
[321913186,1712617838402,-420.0,0.00032999,2]
[321913187,1712617838411,-259.872768,0.00033165,2]
[321913188,1712617838420,-154.95976064,0.00033248,4]
[321913189,1712617838429,-161.11084055,0.00033608,2]
[321913190,1712617838438,-166.06252,0.00033844,2]
[321913191,1712617838449,-4994.4423695,0.00033901,4]
[321913192,1712617838458,-924.63411097,0.00033902,4]
[321913193,1712617838467,-161.11084055,0.00034349,2]
[321913194,1712617838477,-464.50545485,0.0003457,4]
[321913195,1712617838486,-252.65803434,0.00034571,4]
[321913196,1712617838495,-224.0,0.00034847,2]
[321913197,1712617838504,-2000.0,0.000349,2]
[321913198,1712617838513,-5564.97168316,0.00034998,4]
[321913199,1712617838523,-765.63209459,0.00034998,33]
[321913200,1712617838532,-308.20848733,0.00034998,4]
[321913201,1712617838543,-562.64730962,0.00034999,4]
[321913202,1712617838554,-5183.6283,0.00034999,4]
[321913203,1712617838563,-179.02395806,0.00035,30]
[321913204,1712617838574,-2050.96007032,0.00035,2]
[321913205,1712617838683,-8190.23914555,0.00035,2]
[321913206,1712617838693,-26578.44290471,0.00035,7]
[321913207,1712617838702,-161.11084055,0.00035091,2]
[321913208,1712617838712,-6854.02678516,0.00035098,4]
[321913209,1712617838721,-668.64742128,0.00035099,4]
[321913210,1712617838730,-595.96032213,0.00035099,2]
[321913211,1712617838740,-738.23622862,0.000351,2]
[321913212,1712617838749,-150.89437394,0.00035647,2]
[321913213,1712617838758,-154.90705577,0.0003568,2]
[321913214,1712617838768,-1963.44133706,0.00035686,4]
[321913215,1712617838777,-1954.37802725,0.00035686,4]
[321913216,1712617838786,-539.58351361,0.00035686,4]
[321913217,1712617838796,-808.05197604,0.00035686,4]
[321913218,1712617838810,-984.42013924,0.00035686,4]
[321913219,1712617838819,-436.359586,0.00035686,4]
[321913220,1712617838829,-2579.2553814,0.00035686,4]
[321913221,1712617838900,-309.11702662,0.00035687,4]
[321913222,1712617838908,-285.14752424,0.00035687,4]
[321913223,1712617838917,-1275.85806128,0.00035687,120]
[321913224,1712617838927,-62415.67652077,0.00035711,4]
[321913225,1712617838935,-929.28,0.00035711,2]
[321913226,1712617838945,-929.28,0.00035711,2]
[321913227,1712617838954,-929.28,0.00035711,2]
[321913228,1712617838964,-929.28,0.00035711,2]
[321913229,1712617838973,-929.28,0.00035711,2]
[321913230,1712617838982,-929.28,0.00035711,2]
[321913231,1712617838991,-929.28,0.00035711,2]
[321913232,1712617838999,-149779.50182729,0.00035712,3]
[321913233,1712617839009,-36212.4183,0.00035712,30]
[321913234,1712617839018,-161.11084055,0.00035832,2]
[321913235,1712617839027,-301.78874788,0.00036246,4]
[321913236,1712617839037,-587.0,0.00036299,2]
[321913237,1712617839046,-150.0,0.00036623,2]
[321913238,1712617839056,-603.57749575,0.00036855,7]
[321913239,1712617839065,-648.614568,0.00036986,120]
[321913240,1712617839074,-208.64468944,0.00037048,4]
[321913241,1712617839084,-993.54663388,0.00037272,2]
[321913242,1712617839093,-166.87710603,0.00037475,4]
[321913243,1712617839102,-28211.2354,0.00037712,30]
[321913244,1712617839111,-1207.15499151,0.00037788,30]
[321913245,1712617839120,-7471.0,0.00038,2]
[321913246,1712617839129,-637.89349192,0.00038582,4]
[321913247,1712617839138,-426.36527795,0.00038582,4]
[321913248,1712617839147,-500.0,0.00038684,120]
[321913249,1712617839157,-399.98,0.00038684,120]
[321913250,1712617839166,-2376.02568649,0.00038897,4]
[321913251,1712617839175,-392.00236131,0.00038898,4]
[321913252,1712617839184,-259.872768,0.00038933,2]
[321913253,1712617839192,-3925.88648522,0.00038976,4]
[321913254,1712617839201,-158.06271097,0.00038978,3]
[321913255,1712617839211,-36737.47162522,0.0003898,120]
[321913256,1712617839220,-207.93023383,0.00038997,4]
[321913257,1712617839229,-1055.98815553,0.00038997,4]
[321913258,1712617839238,-433.38376127,0.00038997,4]
[321913259,1712617839247,-355.05993481,0.00038997,2]
[321913260,1712617839257,-387.06507566,0.00038997,4]
[321913261,1712617839266,-1485.26994661,0.00038997,4]
[321913262,1712617839276,-369.65061358,0.00038997,4]
[321913263,1712617839285,-6536.8833366,0.00038997,4]
[321913264,1712617839294,-155.14721322,0.00038997,2]
[321913265,1712617839303,-1713.66889258,0.00038997,4]
[321913266,1712617839312,-267.99080369,0.00038997,4]
[321913267,1712617839321,-155.78258228,0.00038997,4]
[321913268,1712617839330,-453.47656612,0.00038997,4]
[321913269,1712617839339,-241.56762565,0.00038997,4]
[321913270,1712617839347,-157.36359992,0.00038997,4]
[321913271,1712617839355,-215.74268103,0.00038997,4]
[321913272,1712617839364,-469.35162803,0.00038997,4]
[321913273,1712617839373,-559.05799581,0.00038997,4]
[321913274,1712617839382,-157.57356644,0.00038997,4]
[321913275,1712617839392,-750.15457064,0.00038997,2]
[321913276,1712617839402,-400.13769079,0.00038997,4]
[321913277,1712617839411,-1735.92103796,0.00038997,4]
[321913278,1712617839420,-207.9321651,0.00038997,4]
[321913279,1712617839429,-220.61622804,0.00038998,7]
[321913280,1712617839438,-370.89005461,0.00038998,4]
[321913281,1712617839448,-1930.22588294,0.00038998,4]
[321913282,1712617839457,-929.29,0.00038999,2]
[321913283,1712617839466,-929.29,0.00038999,2]
[321913284,1712617839476,-929.28,0.00038999,2]
[321913285,1712617839485,-45728.35096731,0.00039,30]
[321913354,1712617841224,-211.24192726,0.00031381,4]
[321913356,1712617841234,-781.62971038,0.00031381,4]
[321913358,1712617841243,-43330.95797871,0.00039,30]
[321913868,1712617846155,-161.11084055,0.00036574,2]
[321913870,1712617846164,-1298.85486214,0.000369,2]
[321913872,1712617846174,-158.06271097,0.00038978,3]
[321913874,1712617846183,-219.0,0.00039,2]
[321913876,1712617846192,-7486.59342745,0.00039,30]
[321916582,1712618851147,-463.26123895,0.00023195,2]
[321916583,1712618854094,-423.32865144,0.00023195,2]
[321916584,1712618854116,-154.93802479,0.00023195,2]
[321916585,1712618854136,-242.6744587,0.00023196,2]
[321916586,1712618854158,-154.93802479,0.00023196,2]
[321916587,1712618854179,-2092.79838707,0.00023196,2]
[321916588,1712618854201,-581.75582729,0.00023197,2]
[321916589,1712618854222,-174.301356,0.00023198,2]
[321916590,1712618854245,-3183.10815327,0.00024465,2]
[321916591,1712618894571,-22740.29978068,0.00022363,2]
[321916592,1712618894597,-545.90247133,0.00022364,2]
[321916593,1712618894622,-2935.09161467,0.00022364,2]
[321916594,1712618894648,-1307.14749885,0.00022364,2]
[321916595,1712618894674,-2095.27651787,0.00022365,2]
[321916596,1712618894699,-300.0,0.00023467,2]
[321916597,1712618894726,-24900.0,0.00023468,2]
[321916598,1712618894752,-300.0,0.00024462,2]
[321916599,1712618894777,-1028.78868364,0.00024463,2]
[321916600,1712618894803,-1930.22588294,0.00024463,2]
[321916601,1712618894828,-1028.78868364,0.00024463,2]
[321916602,1712618894852,-5781.60876067,0.00024463,2]
[321916603,1712618894876,-935.87904205,0.00024464,2]
[321916604,1712618894902,-276.96705132,0.00024464,2]
[321916605,1712618894927,-1131.68428374,0.00024464,2]
[321916606,1712618894952,-15948.08679049,0.00024465,2]
[321916607,1712618894977,-154.93802479,0.00024465,2]
[321916608,1712618895004,-170.92149901,0.00024473,2]
[321916609,1712618895029,-489.76739013,0.0002449,2]
[321916610,1712618895055,-603.33308133,0.0002449,2]
[321916611,1712618895081,-443.02484357,0.0002449,2]
[321916612,1712618895106,-22133.9996383,0.00024492,2]
[321916613,1712618895132,-779.4326623,0.00025374,2]
[321916614,1712618895157,-420.0,0.00025462,2]
[321916615,1712618895183,-217.4057204,0.00025579,2]
[321916616,1712618895208,-578.63673527,0.00026372,2]
[321916617,1712618895233,-155.01085076,0.00026387,2]
[321916618,1712618895258,-306.232174,0.0002639,2]
[321916619,1712618895283,-420.0,0.00026908,2]
[321916620,1712618895392,-250.0,0.00027029,2]
[321916621,1712618895420,-2095.27651787,0.00027365,2]
[321916622,1712618895446,-207.722594,0.00027397,2]
[321916623,1712618895472,-587.0,0.00027628,2]
[321916624,1712618895496,-176.296828,0.00028506,2]
[321916625,1712618895522,-587.0,0.00029599,2]
[321916626,1712618895546,-6544.4782134,0.00029786,2]
[321916627,1712618895571,-248.95794763,0.00029898,2]
[321916628,1712618895596,-664.0,0.00029977,2]
[321916629,1712618895621,-438.0,0.0003,2]
[321916630,1712618955116,-227.42557848,0.00024465,2]
[321916631,1712618955138,-207.18381603,0.00027396,2]
[321916632,1712618955166,-202.200007,0.00027397,2]
[321916633,1712618964104,-150.0,0.000315,2]
[321916634,1712618980846,305.92371979,0.0003,4]
[321916635,1712618980868,191.90513238,0.0003,4]
[321916636,1712619019964,-848.218848,0.000315,4]
[321916637,1712619019986,-2095.27651787,0.00032365,2]
[321916638,1712619020009,-161.56262224,0.00033,2]
[321916639,1712619020030,-306.232174,0.000331,2]
[321916640,1712619020052,-207.722594,0.00033165,2]
[321916641,1712619020073,-202.200007,0.00033165,2]
[321916642,1712619020097,-161.56262222,0.00033737,2]
[321916643,1712619020118,-126.22461467,0.00034,4]
[321916734,1712619032272,-338.28084018,0.00034,4]
[321916736,1712619032281,-781.62971038,0.00034474,4]
[321916738,1712619032290,-161.56262222,0.00034475,2]
[321916740,1712619032299,-642.37476829,0.00034503,2]
[321916742,1712619032308,-400.0,0.00034999,2]
[321916744,1712619032317,-4583.15205893,0.00035,4]
[321916997,1712619038560,-1520.49711827,0.00034473,4]
[321916999,1712619038569,-733.45821484,0.00034473,4]
[321917001,1712619038578,-595.96032213,0.00035,2]
[321917003,1712619038587,-161.56262222,0.00035212,2]
[321917005,1712619038597,-668.64742128,0.00035665,4]
[321917007,1712619038606,-36212.4183,0.00035673,30]
[321917009,1712619038615,-430.79261593,0.00035849,7]
[321917011,1712619038624,-161.56262222,0.00035949,2]
[321917013,1712619038634,-621.11873841,0.00036229,2]
[321917015,1712619038643,-430.79261586,0.0003633,7]
[321917017,1712619038652,-161.56262222,0.00036686,2]
[321917019,1712619038661,-430.79261586,0.0003681,8]
[321917021,1712619038671,-150.93962415,0.00036831,2]
[321917023,1712619038681,-648.614568,0.00036986,120]
[321917025,1712619038691,-924.63411097,0.00037048,4]
[321917027,1712619038700,-208.64468944,0.00037048,4]
[321917029,1712619038709,-430.79261586,0.00037291,8]
[321917031,1712619038718,-4993.74115682,0.00037313,4]
[321917033,1712619038728,-161.56262222,0.00037424,2]
[321917035,1712619038737,-301.8792483,0.0003745,4]
[321917037,1712619038746,-2000.0,0.00037551,2]
[321917039,1712619038756,-258.57132057,0.00037648,15]
[321917041,1712619038765,-466.13392239,0.00037649,4]
[321917043,1712619038774,-201.70127512,0.00037649,4]
[321917045,1712619038784,-975.48804054,0.00037649,4]
[321917047,1712619038793,-342.65198227,0.00037649,4]
[321917049,1712619038803,-1140.66617803,0.00037649,4]
[321917051,1712619038812,-1367.29488404,0.00037649,4]
[321917053,1712619038821,-3384.18489331,0.00037649,4]
[321917055,1712619038830,-21882.89870941,0.00037649,4]
[321917057,1712619038839,-978.62890386,0.00037649,4]
[321917059,1712619038849,-155.21795967,0.00037649,4]
[321917061,1712619038858,-1483.79537958,0.00037649,4]
[321917063,1712619038868,-405.21213668,0.00037649,4]
[321917065,1712619038877,-15230.52543421,0.00037649,4]
[321917067,1712619038888,-391.87829175,0.00037649,4]
[321917069,1712619038897,-929.28,0.0003765,2]
[321917071,1712619038906,-929.28,0.0003765,2]
[321917073,1712619038914,-929.28,0.0003765,2]
[321917075,1712619038925,-929.28,0.0003765,2]
[321917076,1712619038934,-929.28,0.0003765,2]
[321917078,1712619038943,-929.28,0.0003765,2]
[321917080,1712619038952,-929.28,0.0003765,2]
[321917082,1712619038961,-1963.44133706,0.0003765,4]
[321917084,1712619038970,-808.05197604,0.0003765,4]
[321917086,1712619038979,-1954.37802725,0.0003765,4]
[321917088,1712619038988,-539.58351361,0.0003765,4]
[321917090,1712619038997,-2579.2553814,0.0003765,4]
[321917092,1712619039008,-436.359586,0.0003765,4]
[321917094,1712619039016,-183893.71809328,0.00037651,3]
[321917096,1712619039026,-309.11702662,0.00037651,4]
[321917098,1712619039035,-285.14752424,0.00037651,4]
[321917100,1712619039044,-1275.85806128,0.00037651,120]
[321917102,1712619039053,-62415.67652077,0.00037652,4]
[321917104,1712619039062,-28211.2354,0.00037673,30]
[321917106,1712619039071,-430.79261586,0.00037771,8]
[321917108,1712619039085,-603.7584966,0.0003808,7]
[321917110,1712619039094,-161.56262222,0.00038161,2]
[321917112,1712619039103,-637.89349192,0.00038218,4]
[321917114,1712619039112,-474.68646441,0.00038218,4]
[321917116,1712619039122,-430.79261586,0.00038252,8]
[321917118,1712619039131,-560.0,0.00038499,3]
[321917120,1712619039140,-500.0,0.00038512,120]
[321917121,1712619039149,-399.98,0.00038512,120]
[321917122,1712619039160,-3925.88648522,0.00038608,4]
[321917126,1712619039234,-166.92714914,0.0003872,4]
[321917127,1712619039244,-430.79261586,0.00038732,9]
[321917129,1712619039254,-1834.82940292,0.00038898,2]
[321917131,1712619039263,-161.56262222,0.00038898,2]
[321917133,1712619039272,-2244.39772785,0.000389,15]
[321917135,1712619039281,-1834.8294029,0.00038933,2]
[321917136,1712619039290,-207.722594,0.00038933,2]
[321917138,1712619039300,-202.200007,0.00038933,2]
[321917140,1712619039309,-1834.8294029,0.00038967,2]
[321917142,1712619039318,-158.06271097,0.00038978,3]
[321917144,1712619039327,-36737.47162522,0.0003898,120]
[321917146,1712619039337,-929.29,0.00038995,2]
[321917148,1712619039346,-929.3,0.00038995,2]
[321917150,1712619039355,-929.28,0.00038995,2]
[321917152,1712619039364,-17656.33371163,0.00038996,3]
[321917183,1712619040167,-58352.89378263,0.00038996,3]
[321917188,1712619040226,-696.41999977,0.00038996,3]
[321917842,1712619046327,-246.50024851,0.00037648,15]
[321917844,1712619046336,-11057.46664654,0.00038996,3]
[321917846,1712619046347,-15241.76586783,0.00038996,3]
[321917918,1712619180534,-36737.47162522,0.0003898,120]
[321917919,1712619180560,-765.5500005,0.00039,120]
[321917920,1712619209136,-500.0,0.00038512,120]
[321917921,1712619209160,-399.98,0.00038512,120]
[321917922,1712619209184,-765.63209459,0.00038994,37]
[321917923,1712619209772,486.460926,0.00036986,120]
[321917924,1712619223651,-28211.2354,0.00037637,30]
[321917925,1712619244409,-93414.96378509,0.00039,30]
[321917926,1712619247087,1275.85806128,0.00038994,120]
[321917927,1712619277993,55309.17815363,0.00039,30]
[321917955,1712619848967,1394.84,0.00027499,120]
[321917957,1712620043129,-389.04600483,0.00025598,2]
[321917958,1712620150101,-545.90247133,0.00024999,2]
[321917959,1712620150120,-1131.68428374,0.00024999,2]
[321917960,1712620150140,-5564.97168216,0.00024999,2]
[321917961,1712620150160,-912.67806081,0.00025,2]
[321917962,1712620150179,-154.92253873,0.00025502,2]
[321917963,1712620150199,-935.87904205,0.00025502,2]
[321917964,1712620150219,-300.0,0.00025502,2]
[321917965,1712620150239,-154.92253873,0.00025502,2]
[321917966,1712620150259,-300.0,0.00025502,2]
[321917967,1712620150279,-469.89408815,0.00025503,2]
[321917968,1712620150299,-562.64730962,0.00025503,2]
[321917969,1712620150318,-3717.29210644,0.00025503,2]
[321917970,1712620150340,-924.63411097,0.00025503,2]
[321917971,1712620150359,-154.92253873,0.00025504,2]
[321917972,1712620150379,-1485.26994661,0.00025504,2]
[321917973,1712620150398,-19131.19494376,0.00025504,2]
[321917974,1712620150419,-637.89349192,0.00025505,2]
[321917975,1712620150438,-1959.25532352,0.00025505,2]
[321917976,1712620150459,-236.36058739,0.00025509,2]
[321917977,1712620150478,-47586.56218939,0.00025592,2]
[321917978,1712620150498,-22740.29978068,0.00025593,2]
[321917979,1712620150519,-258.57132057,0.00025598,2]
[321917980,1712620150539,-641.17796066,0.00025608,2]
[321917981,1712620150558,-306.232174,0.00025609,2]
[321917982,1712620150577,-182.307066,0.00026441,2]
[321917983,1712620150598,-24900.0,0.00026596,2]
[321917984,1712620150618,-250.0,0.00027334,2]
[321917985,1712620150638,-262.684748,0.00027397,2]
[321917986,1712620150658,-236.36058732,0.00027457,3]
[321917987,1712620150678,-344.0,0.00027613,2]
[321917988,1712620150698,-420.0,0.00028052,2]
[321917989,1712620150723,-236.36058732,0.00029406,4]
[321917990,1712620150743,-162.4278552,0.00029692,2]
[321917991,1712620150763,-1165.75148064,0.00029797,2]
[321917992,1712620150785,-15183.6283,0.00029897,2]